[Event "*** Titled Tuesday Blitz"]
[Site "Chess.com"]
[Date "2020.11.24"]
[Round "10"]
[White "MillyNeuf"]
[Black "beto-betun"]
[Result "0-1"]
[WhiteElo "2356"]
[BlackElo "2216"]
[TimeControl "180+1"]
[EndTime "12:11:28 PST"]
[Termination "beto-betun won by checkmate"]

1. e4 {[%clk 0:03:00.9]} 1... c5 {[%clk 0:03:00.1]} 2. Nc3 {[%clk 0:03:00.6]}
2... Nc6 {[%clk 0:02:58.8]} 3. g3 {[%clk 0:03:00.9]} 3... g6 {[%clk 0:02:59.1]}
4. Bg2 {[%clk 0:03:01.4]} 4... Bg7 {[%clk 0:02:59.4]} 5. d3 {[%clk 0:03:02]}
5... e6 {[%clk 0:02:58.1]} 6. Be3 {[%clk 0:03:01.9]} 6... d6 {[%clk 0:02:56.4]}
7. Qd2 {[%clk 0:03:02]} 7... Rb8 {[%clk 0:02:53.6]} 8. Nge2 {[%clk 0:03:01.8]}
8... Bd7 {[%clk 0:02:51.9]} 9. O-O-O {[%clk 0:02:55.7]} 9... b5 {[%clk
0:02:52.1]} 10. Rdf1 {[%clk 0:02:52.5]} 10... a5 {[%clk 0:02:51.9]} 11. Nd1
{[%clk 0:02:47.8]} 11... a4 {[%clk 0:02:49.4]} 12. h4 {[%clk 0:02:45.7]} 12...
h5 {[%clk 0:02:47]} 13. f4 {[%clk 0:02:45]} 13... Nge7 {[%clk 0:02:46.8]} 14.
Bh3 {[%clk 0:02:40.7]} 14... b4 {[%clk 0:02:44.6]} 15. g4 {[%clk 0:02:36.9]}
15... hxg4 {[%clk 0:02:43.2]} 16. Bxg4 {[%clk 0:02:37.8]} 16... f5 {[%clk
0:02:41.7]} 17. Bf3 {[%clk 0:02:34.4]} 17... b3 {[%clk 0:02:39]} 18. cxb3 {[%clk
0:02:30.1]} 18... axb3 {[%clk 0:02:19.6]} 19. a3 {[%clk 0:02:30.2]} 19... Nd4
{[%clk 0:01:50.4]} 20. Nxd4 {[%clk 0:02:17.7]} 20... cxd4 {[%clk 0:01:51.3]} 21.
Bf2 {[%clk 0:02:14]} 21... Rc8+ {[%clk 0:01:50.2]} 22. Kb1 {[%clk 0:02:10.8]}
22... Rc2 {[%clk 0:01:50.3]} 23. Qb4 {[%clk 0:02:04.5]} 23... Qc8 {[%clk
0:01:45.2]} 24. Qxb3 {[%clk 0:01:25.8]} 24... Rc1+ {[%clk 0:01:34.8]} 25. Ka2
{[%clk 0:01:25.5]} 25... e5 {[%clk 0:01:34.7]} 26. h5 {[%clk 0:01:21.8]} 26...
Be6 {[%clk 0:01:35]} 27. hxg6 {[%clk 0:01:14.8]} 27... Bxb3+ {[%clk 0:01:34.5]}
28. Kxb3 {[%clk 0:01:15.7]} 28... Qc2+ {[%clk 0:01:32.8]} 29. Kb4 {[%clk
0:01:13.2]} 29... Nc6+ {[%clk 0:01:26.6]} 30. Kb5 {[%clk 0:01:13]} 30... Qc5+
{[%clk 0:01:25.8]} 31. Ka6 {[%clk 0:01:11.2]} 31... Qa7+ {[%clk 0:01:19]} 32.
Kb5 {[%clk 0:01:10.9]} 32... Rc5# {[%clk 0:01:19.1]} 0-1

[Event "*** Titled Tuesday Blitz"]
[Site "Chess.com"]
[Date "2020.11.24"]
[Round "10"]
[White "korbul"]
[Black "SanchezKelvin"]
[Result "0-1"]
[WhiteElo "2545"]
[BlackElo "2463"]
[TimeControl "180+1"]
[EndTime "12:11:35 PST"]
[Termination "SanchezKelvin won by resignation"]

1. e4 {[%clk 0:03:00.6]} 1... c5 {[%clk 0:02:54]} 2. Nf3 {[%clk 0:02:59.3]} 2...
d6 {[%clk 0:02:44.2]} 3. Bc4 {[%clk 0:02:58.7]} 3... Nf6 {[%clk 0:02:37.7]} 4.
d3 {[%clk 0:02:58.6]} 4... Nc6 {[%clk 0:02:36.4]} 5. c3 {[%clk 0:02:57.3]} 5...
g6 {[%clk 0:02:26.8]} 6. h3 {[%clk 0:02:55.4]} 6... Bg7 {[%clk 0:02:26.7]} 7.
O-O {[%clk 0:02:55.1]} 7... O-O {[%clk 0:02:26]} 8. a4 {[%clk 0:02:53.8]} 8...
d5 {[%clk 0:02:13.2]} 9. exd5 {[%clk 0:02:53.2]} 9... Nxd5 {[%clk 0:02:14]} 10.
Na3 {[%clk 0:02:52.4]} 10... h6 {[%clk 0:02:13.5]} 11. Re1 {[%clk 0:02:51]}
11... Be6 {[%clk 0:02:12.4]} 12. Be3 {[%clk 0:02:47.3]} 12... b6 {[%clk
0:02:04.2]} 13. Qc1 {[%clk 0:02:40.5]} 13... Kh7 {[%clk 0:02:03.1]} 14. Bd2
{[%clk 0:02:40.3]} 14... Rc8 {[%clk 0:02:01.8]} 15. Rxe6 {[%clk 0:02:39.7]}
15... fxe6 {[%clk 0:02:00.8]} 16. Qd1 {[%clk 0:02:35.7]} 16... e5 {[%clk
0:01:57.8]} 17. Qe2 {[%clk 0:02:34.8]} 17... Nf4 {[%clk 0:01:56.9]} 18. Bxf4
{[%clk 0:02:34.2]} 18... exf4 {[%clk 0:01:55.5]} 19. Re1 {[%clk 0:02:31.3]}
19... e5 {[%clk 0:01:53.9]} 20. Ba2 {[%clk 0:02:27.8]} 20... Qc7 {[%clk
0:01:45]} 21. Bb1 {[%clk 0:02:27]} 21... Rce8 {[%clk 0:01:34.4]} 22. Qe4 {[%clk
0:02:20.4]} 22... Ne7 {[%clk 0:01:32.9]} 23. Nc4 {[%clk 0:02:16]} 23... Nf5
{[%clk 0:01:28.3]} 24. Ncxe5 {[%clk 0:02:14.8]} 24... Re7 {[%clk 0:01:18.9]} 25.
d4 {[%clk 0:02:12.3]} 25... cxd4 {[%clk 0:01:18.5]} 26. cxd4 {[%clk 0:02:12.6]}
26... Qd6 {[%clk 0:01:15]} 27. Qxf4 {[%clk 0:01:51.2]} 27... Nxd4 {[%clk
0:00:59.2]} 28. Qe4 {[%clk 0:01:36.8]} 28... Nxf3+ {[%clk 0:00:56.1]} 29. gxf3
{[%clk 0:01:27.1]} 29... Rxe5 {[%clk 0:00:54.8]} 0-1

[Event "*** Titled Tuesday Blitz"]
[Site "Chess.com"]
[Date "2020.11.24"]
[Round "10"]
[White "DishonorOnYourCow"]
[Black "GMJustin"]
[Result "1-0"]
[WhiteElo "2454"]
[BlackElo "2290"]
[TimeControl "180+1"]
[EndTime "12:11:35 PST"]
[Termination "DishonorOnYourCow won on time"]

1. d4 {[%clk 0:03:00.9]} 1... Nf6 {[%clk 0:02:52.3]} 2. c4 {[%clk 0:03:00.3]}
2... g6 {[%clk 0:02:51.4]} 3. f3 {[%clk 0:02:58.5]} 3... e6 {[%clk 0:02:48]} 4.
e4 {[%clk 0:02:57.1]} 4... c5 {[%clk 0:02:47.9]} 5. d5 {[%clk 0:02:56.6]} 5...
d6 {[%clk 0:02:47.8]} 6. Nc3 {[%clk 0:02:56.3]} 6... Bg7 {[%clk 0:02:47]} 7. Bd3
{[%clk 0:02:55.8]} 7... exd5 {[%clk 0:02:15.9]} 8. cxd5 {[%clk 0:02:55.1]} 8...
O-O {[%clk 0:01:57.8]} 9. Nge2 {[%clk 0:02:53.6]} 9... a6 {[%clk 0:01:48.3]} 10.
a4 {[%clk 0:02:53]} 10... Nbd7 {[%clk 0:01:48.3]} 11. O-O {[%clk 0:02:52.6]}
11... Ne5 {[%clk 0:01:44.3]} 12. Bc2 {[%clk 0:02:45.5]} 12... c4 {[%clk
0:01:37.6]} 13. Be3 {[%clk 0:02:34.3]} 13... Nfd7 {[%clk 0:01:22.4]} 14. h3
{[%clk 0:02:32.4]} 14... g5 {[%clk 0:01:10.4]} 15. Qd2 {[%clk 0:02:27.7]} 15...
h6 {[%clk 0:00:51.5]} 16. f4 {[%clk 0:02:27]} 16... gxf4 {[%clk 0:00:49.7]} 17.
Bxf4 {[%clk 0:02:26.5]} 17... Kh7 {[%clk 0:00:35.9]} 18. Ng3 {[%clk 0:02:13]}
18... Nc5 {[%clk 0:00:27.9]} 19. Nh5 {[%clk 0:02:09.9]} 19... Ncd3 {[%clk
0:00:06.1]} 20. Be3 {[%clk 0:02:00.6]} 20... Rg8 {[%clk 0:00:01.4]} 21. Bxd3
{[%clk 0:01:59]} 1-0

[Event "*** Titled Tuesday Blitz"]
[Site "Chess.com"]
[Date "2020.11.24"]
[Round "10"]
[White "ChronicUnhappiness"]
[Black "rugbyclub"]
[Result "0-1"]
[WhiteElo "2328"]
[BlackElo "2194"]
[TimeControl "180+1"]
[EndTime "12:11:46 PST"]
[Termination "rugbyclub won on time"]

1. d3 {[%clk 0:03:00.9]} 1... d5 {[%clk 0:02:56.7]} 2. Nf3 {[%clk 0:03:01.8]}
2... Nc6 {[%clk 0:02:55.1]} 3. g3 {[%clk 0:03:02.7]} 3... e5 {[%clk 0:02:55.3]}
4. Bg2 {[%clk 0:03:03.6]} 4... Nf6 {[%clk 0:02:55.7]} 5. O-O {[%clk 0:03:03.8]}
5... h6 {[%clk 0:02:56]} 6. c4 {[%clk 0:03:01.4]} 6... Be7 {[%clk 0:02:53.2]} 7.
cxd5 {[%clk 0:03:00.5]} 7... Nxd5 {[%clk 0:02:52.6]} 8. Nc3 {[%clk 0:03:00.8]}
8... Nb6 {[%clk 0:02:52.4]} 9. d4 {[%clk 0:02:46.3]} 9... exd4 {[%clk
0:02:49.4]} 10. Nb5 {[%clk 0:02:45.2]} 10... Bf6 {[%clk 0:02:45.9]} 11. Bf4
{[%clk 0:02:44.2]} 11... Nd5 {[%clk 0:02:42.3]} 12. Nfxd4 {[%clk 0:02:03.5]}
12... Nxd4 {[%clk 0:02:36.5]} 13. Bxd5 {[%clk 0:00:38.5]} 13... Nxb5 {[%clk
0:02:29.8]} 14. Qb3 {[%clk 0:00:23]} 14... O-O {[%clk 0:02:17.2]} 15. Qxb5
{[%clk 0:00:14.2]} 15... c6 {[%clk 0:02:16.9]} 16. Bxc6 {[%clk 0:00:03.9]} 16...
bxc6 {[%clk 0:02:16.8]} 17. Qxc6 {[%clk 0:00:04.3]} 17... Be6 {[%clk 0:01:36.7]}
0-1

[Event "*** Titled Tuesday Blitz"]
[Site "Chess.com"]
[Date "2020.11.24"]
[Round "10"]
[White "BogdanDeac"]
[Black "Aleksey_Sorokin"]
[Result "1-0"]
[WhiteElo "2916"]
[BlackElo "2830"]
[TimeControl "180+1"]
[EndTime "12:11:52 PST"]
[Termination "BogdanDeac won by resignation"]

1. e4 {[%clk 0:03:00.9]} 1... c6 {[%clk 0:02:50.5]} 2. Nf3 {[%clk 0:03:00]} 2...
d5 {[%clk 0:02:51.3]} 3. d3 {[%clk 0:03:00.4]} 3... g6 {[%clk 0:02:49.6]} 4.
Nbd2 {[%clk 0:02:59.5]} 4... Bg7 {[%clk 0:02:49.6]} 5. g3 {[%clk 0:03:00.1]}
5... e5 {[%clk 0:02:48.1]} 6. Bg2 {[%clk 0:03:00.5]} 6... Ne7 {[%clk 0:02:48]}
7. O-O {[%clk 0:03:00.7]} 7... O-O {[%clk 0:02:47.9]} 8. a4 {[%clk 0:03:00.5]}
8... Qc7 {[%clk 0:02:46.6]} 9. c3 {[%clk 0:02:58.4]} 9... Na6 {[%clk 0:02:44.8]}
10. Qc2 {[%clk 0:02:53]} 10... Rd8 {[%clk 0:02:43.5]} 11. b4 {[%clk 0:02:43.7]}
11... d4 {[%clk 0:02:43.1]} 12. Bb2 {[%clk 0:02:38.7]} 12... dxc3 {[%clk
0:02:41.4]} 13. Bxc3 {[%clk 0:02:38.5]} 13... Bg4 {[%clk 0:02:16.5]} 14. h3
{[%clk 0:02:29.1]} 14... Bd7 {[%clk 0:02:16.4]} 15. Rfc1 {[%clk 0:02:19.3]}
15... Rac8 {[%clk 0:02:14.5]} 16. Qb2 {[%clk 0:02:08.8]} 16... f6 {[%clk
0:02:10.6]} 17. d4 {[%clk 0:02:08.5]} 17... exd4 {[%clk 0:02:04.2]} 18. Bxd4
{[%clk 0:02:08]} 18... Qd6 {[%clk 0:02:03.3]} 19. Rab1 {[%clk 0:01:47.7]} 19...
b6 {[%clk 0:01:58]} 20. e5 {[%clk 0:01:32.8]} 20... fxe5 {[%clk 0:01:53.1]} 21.
Ne4 {[%clk 0:01:32.3]} 21... Qe6 {[%clk 0:01:25.7]} 22. Bxe5 {[%clk 0:01:17.7]}
22... Bxe5 {[%clk 0:01:23.5]} 23. Nxe5 {[%clk 0:01:13.5]} 23... Be8 {[%clk
0:01:22.3]} 24. Ng4 {[%clk 0:01:07.6]} 24... h5 {[%clk 0:01:10.6]} 25. Nh6+
{[%clk 0:01:00.2]} 25... Kf8 {[%clk 0:01:02.6]} 26. Qh8+ {[%clk 0:00:58.6]}
26... Ng8 {[%clk 0:01:02]} 27. Ng5 {[%clk 0:00:58.7]} 1-0

[Event "*** Titled Tuesday Blitz"]
[Site "Chess.com"]
[Date "2020.11.24"]
[Round "10"]
[White "arjwezhrtdrz"]
[Black "Slovak_fighter2000"]
[Result "0-1"]
[WhiteElo "2334"]
[BlackElo "2470"]
[TimeControl "180+1"]
[EndTime "12:12:01 PST"]
[Termination "Slovak_fighter2000 won on time"]

1. e4 {[%clk 0:03:00.1]} 1... e5 {[%clk 0:02:59]} 2. Nf3 {[%clk 0:02:59.7]} 2...
Nf6 {[%clk 0:02:59.4]} 3. Nc3 {[%clk 0:03:00.1]} 3... Bc5 {[%clk 0:02:58.7]} 4.
Nxe5 {[%clk 0:02:39.1]} 4... Nc6 {[%clk 0:02:58.4]} 5. Nf3 {[%clk 0:02:31.6]}
5... d5 {[%clk 0:02:48.6]} 6. exd5 {[%clk 0:02:20.6]} 6... Nxd5 {[%clk
0:02:46.6]} 7. Nxd5 {[%clk 0:02:20.6]} 7... Qxd5 {[%clk 0:02:46]} 8. Be2 {[%clk
0:02:21.4]} 8... Bg4 {[%clk 0:02:37.7]} 9. O-O {[%clk 0:02:20.7]} 9... O-O
{[%clk 0:02:31]} 10. c3 {[%clk 0:02:14]} 10... Qh5 {[%clk 0:02:27.7]} 11. h3
{[%clk 0:01:40.3]} 11... Bxh3 {[%clk 0:02:21.1]} 12. gxh3 {[%clk 0:01:39.9]}
12... Qxh3 {[%clk 0:02:20.3]} 13. d4 {[%clk 0:01:15]} 13... Bd6 {[%clk
0:02:07.3]} 14. Re1 {[%clk 0:00:53.3]} 14... Rae8 {[%clk 0:01:32.9]} 15. Bg5
{[%clk 0:00:17]} 15... h6 {[%clk 0:01:24.6]} 16. Be3 {[%clk 0:00:13.3]} 16...
Re6 {[%clk 0:01:19.6]} 0-1

[Event "*** Titled Tuesday Blitz"]
[Site "Chess.com"]
[Date "2020.11.24"]
[Round "10"]
[White "keepitcoming"]
[Black "hawes33"]
[Result "0-1"]
[WhiteElo "2352"]
[BlackElo "2249"]
[TimeControl "180+1"]
[EndTime "12:12:06 PST"]
[Termination "hawes33 won by checkmate"]

1. d4 {[%clk 0:03:00.9]} 1... c5 {[%clk 0:03:00]} 2. d5 {[%clk 0:03:00.8]} 2...
Nf6 {[%clk 0:03:00]} 3. c4 {[%clk 0:03:01.7]} 3... g6 {[%clk 0:03:00.2]} 4. Nc3
{[%clk 0:03:01.4]} 4... Bg7 {[%clk 0:03:00.8]} 5. e4 {[%clk 0:03:01.4]} 5... O-O
{[%clk 0:03:01]} 6. f3 {[%clk 0:02:54.4]} 6... d6 {[%clk 0:03:00.9]} 7. Nge2
{[%clk 0:02:54.2]} 7... e6 {[%clk 0:03:00.4]} 8. Ng3 {[%clk 0:02:54.3]} 8...
exd5 {[%clk 0:03:00.8]} 9. cxd5 {[%clk 0:02:55.2]} 9... Na6 {[%clk 0:02:58.8]}
10. a4 {[%clk 0:02:55.6]} 10... Nc7 {[%clk 0:02:59]} 11. Bd3 {[%clk 0:02:52.3]}
11... b6 {[%clk 0:02:59.6]} 12. O-O {[%clk 0:02:51.7]} 12... Ba6 {[%clk
0:03:00.2]} 13. Bg5 {[%clk 0:02:43.1]} 13... Bxd3 {[%clk 0:03:00]} 14. Qxd3
{[%clk 0:02:44]} 14... h6 {[%clk 0:03:00.5]} 15. Be3 {[%clk 0:02:42.9]} 15...
Nd7 {[%clk 0:02:59.1]} 16. f4 {[%clk 0:02:38.7]} 16... Re8 {[%clk 0:02:47.7]}
17. Rae1 {[%clk 0:02:29.7]} 17... a6 {[%clk 0:02:37.5]} 18. f5 {[%clk
0:02:19.1]} 18... Ne5 {[%clk 0:02:36.7]} 19. Qe2 {[%clk 0:02:14.8]} 19... b5
{[%clk 0:02:36.2]} 20. fxg6 {[%clk 0:02:09.4]} 20... fxg6 {[%clk 0:02:35.9]} 21.
axb5 {[%clk 0:02:07.2]} 21... axb5 {[%clk 0:02:35.4]} 22. Nxb5 {[%clk
0:02:06.2]} 22... Nxb5 {[%clk 0:02:33.3]} 23. Qxb5 {[%clk 0:02:07.1]} 23... Ng4
{[%clk 0:02:27.9]} 24. Kh1 {[%clk 0:01:11.5]} 24... Nxh2 {[%clk 0:02:17.1]} 25.
Kxh2 {[%clk 0:01:06.2]} 25... Qh4+ {[%clk 0:02:16]} 26. Kg1 {[%clk 0:01:06.3]}
26... Qxg3 {[%clk 0:02:15.4]} 27. Bf2 {[%clk 0:01:00]} 27... Qg4 {[%clk
0:02:06.4]} 28. Qe2 {[%clk 0:00:55.5]} 28... Qg5 {[%clk 0:01:56.4]} 29. Be3
{[%clk 0:00:47.7]} 29... Qe5 {[%clk 0:01:55.1]} 30. Bf4 {[%clk 0:00:44.5]} 30...
Qxb2 {[%clk 0:01:54.2]} 31. Bxd6 {[%clk 0:00:37]} 31... Bd4+ {[%clk 0:01:44.7]}
32. Kh1 {[%clk 0:00:35.8]} 32... Qxe2 {[%clk 0:01:36.8]} 33. Rxe2 {[%clk
0:00:36.7]} 33... Rad8 {[%clk 0:01:36.3]} 34. Bf4 {[%clk 0:00:27.7]} 34... Rxd5
{[%clk 0:01:35.5]} 35. Bxh6 {[%clk 0:00:25.8]} 35... Rh5# {[%clk 0:01:34.3]} 0-1

[Event "*** Titled Tuesday Blitz"]
[Site "Chess.com"]
[Date "2020.11.24"]
[Round "10"]
[White "Aradej"]
[Black "alexrustemov"]
[Result "1-0"]
[WhiteElo "2469"]
[BlackElo "2638"]
[TimeControl "180+1"]
[EndTime "12:12:11 PST"]
[Termination "Aradej won on time"]

1. d4 {[%clk 0:03:00.8]} 1... g6 {[%clk 0:02:58.7]} 2. Nf3 {[%clk 0:03:00.8]}
2... Bg7 {[%clk 0:02:59.2]} 3. e4 {[%clk 0:02:59.9]} 3... c5 {[%clk 0:02:59.6]}
4. d5 {[%clk 0:02:58.2]} 4... d6 {[%clk 0:02:59]} 5. Nc3 {[%clk 0:02:57.6]} 5...
Nf6 {[%clk 0:02:59.4]} 6. Bb5+ {[%clk 0:02:57.6]} 6... Nbd7 {[%clk 0:02:55.8]}
7. a4 {[%clk 0:02:58.1]} 7... O-O {[%clk 0:02:55.1]} 8. O-O {[%clk 0:02:58.1]}
8... a6 {[%clk 0:02:51.1]} 9. Bd3 {[%clk 0:02:57.6]} 9... Ng4 {[%clk 0:02:39.3]}
10. h3 {[%clk 0:02:52.6]} 10... Nge5 {[%clk 0:02:38.9]} 11. Bf4 {[%clk
0:02:51.8]} 11... Rb8 {[%clk 0:02:32.8]} 12. Nxe5 {[%clk 0:02:46.7]} 12... Nxe5
{[%clk 0:02:31.1]} 13. Be2 {[%clk 0:02:46.8]} 13... Qa5 {[%clk 0:02:28.5]} 14.
Qd2 {[%clk 0:02:46.3]} 14... Bd7 {[%clk 0:01:56.8]} 15. Bh6 {[%clk 0:02:44.7]}
15... Bxh6 {[%clk 0:01:44.9]} 16. Qxh6 {[%clk 0:02:43.9]} 16... Qb4 {[%clk
0:01:45.4]} 17. Qd2 {[%clk 0:02:43.6]} 17... b5 {[%clk 0:01:27.1]} 18. axb5
{[%clk 0:02:36.7]} 18... Bxb5 {[%clk 0:01:26.5]} 19. Bxb5 {[%clk 0:02:24.5]}
19... axb5 {[%clk 0:01:27.4]} 20. b3 {[%clk 0:02:24.3]} 20... Ra8 {[%clk
0:01:13.8]} 21. Rab1 {[%clk 0:02:22.3]} 21... Ra3 {[%clk 0:00:54.5]} 22. Rfd1
{[%clk 0:02:20.6]} 22... Rfa8 {[%clk 0:00:53.3]} 23. f4 {[%clk 0:02:19.5]} 23...
Nd7 {[%clk 0:00:51.5]} 24. Kh1 {[%clk 0:02:19.3]} 24... Nf6 {[%clk 0:00:50.2]}
25. Qd3 {[%clk 0:02:18.4]} 25... c4 {[%clk 0:00:31.8]} 26. Qd4 {[%clk
0:02:18.4]} 26... Nh5 {[%clk 0:00:26.2]} 27. e5 {[%clk 0:02:17.7]} 27... Qa5
{[%clk 0:00:20.9]} 28. exd6 {[%clk 0:02:15.1]} 28... exd6 {[%clk 0:00:20.1]} 29.
Ne4 {[%clk 0:02:14]} 29... cxb3 {[%clk 0:00:19.1]} 30. cxb3 {[%clk 0:02:06.2]}
30... Re8 {[%clk 0:00:19.6]} 31. Nxd6 {[%clk 0:02:04.9]} 31... Re2 {[%clk
0:00:13.8]} 32. Rbc1 {[%clk 0:01:56.5]} 32... Raa2 {[%clk 0:00:04.7]} 33. Rc8+
{[%clk 0:01:55.2]} 1-0

[Event "*** Titled Tuesday Blitz"]
[Site "Chess.com"]
[Date "2020.11.24"]
[Round "10"]
[White "IrishMonkey"]
[Black "Supernotar"]
[Result "1-0"]
[WhiteElo "2580"]
[BlackElo "2819"]
[TimeControl "180+1"]
[EndTime "12:12:19 PST"]
[Termination "IrishMonkey won by resignation"]

1. Nf3 {[%clk 0:03:00.9]} 1... c5 {[%clk 0:02:59.9]} 2. c4 {[%clk 0:02:57.4]}
2... Nc6 {[%clk 0:03:00]} 3. d4 {[%clk 0:02:55.8]} 3... cxd4 {[%clk 0:02:59.7]}
4. Nxd4 {[%clk 0:02:55.9]} 4... g6 {[%clk 0:03:00.3]} 5. e4 {[%clk 0:02:52.3]}
5... Bg7 {[%clk 0:03:00.3]} 6. Be3 {[%clk 0:02:51.1]} 6... Nf6 {[%clk
0:02:59.4]} 7. Nc3 {[%clk 0:02:49.5]} 7... d6 {[%clk 0:02:58.7]} 8. Be2 {[%clk
0:02:46.5]} 8... Bd7 {[%clk 0:02:59]} 9. O-O {[%clk 0:02:43]} 9... O-O {[%clk
0:02:59.2]} 10. Rc1 {[%clk 0:02:42.1]} 10... Qa5 {[%clk 0:02:58.8]} 11. Nc2
{[%clk 0:02:39]} 11... Rfc8 {[%clk 0:02:57.9]} 12. f4 {[%clk 0:02:35.8]} 12...
a6 {[%clk 0:02:52.2]} 13. c5 {[%clk 0:02:33.3]} 13... Ne8 {[%clk 0:02:21.4]} 14.
Na3 {[%clk 0:02:28.4]} 14... Qd8 {[%clk 0:02:13.1]} 15. Nc4 {[%clk 0:02:25.3]}
15... dxc5 {[%clk 0:01:50]} 16. Na4 {[%clk 0:02:21.3]} 16... b5 {[%clk
0:01:37.9]} 17. Nxc5 {[%clk 0:02:19.1]} 17... bxc4 {[%clk 0:01:35.1]} 18. Nxd7
{[%clk 0:02:19.1]} 18... Rc7 {[%clk 0:01:00.4]} 19. Nb6 {[%clk 0:02:14.7]} 19...
Qxd1 {[%clk 0:00:56.1]} 20. Rfxd1 {[%clk 0:02:15.6]} 20... Rb8 {[%clk
0:00:56.6]} 21. Nxc4 {[%clk 0:02:13.3]} 21... Rcb7 {[%clk 0:00:43.2]} 22. b3
{[%clk 0:02:07.1]} 22... Nb4 {[%clk 0:00:42.4]} 23. Rd2 {[%clk 0:02:04.6]} 23...
Nf6 {[%clk 0:00:39.8]} 24. Bf3 {[%clk 0:02:02]} 24... Rc7 {[%clk 0:00:36]} 25.
a3 {[%clk 0:01:59.5]} 25... Nc6 {[%clk 0:00:30.9]} 26. Nb6 {[%clk 0:01:59.5]}
26... Rbb7 {[%clk 0:00:26.3]} 27. b4 {[%clk 0:01:56.8]} 27... Ne8 {[%clk
0:00:22.5]} 28. Nd5 {[%clk 0:01:52.6]} 28... Rc8 {[%clk 0:00:20.4]} 29. e5
{[%clk 0:01:52.9]} 29... Rbb8 {[%clk 0:00:16.9]} 30. Rxc6 {[%clk 0:01:48.6]}
30... Rxc6 {[%clk 0:00:16.9]} 31. Nxe7+ {[%clk 0:01:49.2]} 31... Kf8 {[%clk
0:00:17]} 32. Nxc6 {[%clk 0:01:45.4]} 32... Rb5 {[%clk 0:00:16.5]} 33. a4 {[%clk
0:01:42.8]} 33... Rb7 {[%clk 0:00:14.6]} 34. Rd8 {[%clk 0:01:39.1]} 34... f6
{[%clk 0:00:11.8]} 35. Bc5+ {[%clk 0:01:36]} 1-0

[Event "*** Titled Tuesday Blitz"]
[Site "Chess.com"]
[Date "2020.11.24"]
[Round "10"]
[White "Sjakkerntobi"]
[Black "szachuspl"]
[Result "0-1"]
[WhiteElo "2363"]
[BlackElo "2505"]
[TimeControl "180+1"]
[EndTime "12:12:19 PST"]
[Termination "szachuspl won by resignation"]

1. e4 {[%clk 0:03:00.9]} 1... c5 {[%clk 0:02:58.2]} 2. Nf3 {[%clk 0:03:01]} 2...
e6 {[%clk 0:02:57.8]} 3. d4 {[%clk 0:03:01.5]} 3... cxd4 {[%clk 0:02:52.6]} 4.
Nxd4 {[%clk 0:03:02.4]} 4... Nc6 {[%clk 0:02:52.7]} 5. Nc3 {[%clk 0:03:02]} 5...
Qc7 {[%clk 0:02:53.3]} 6. Be3 {[%clk 0:03:01]} 6... a6 {[%clk 0:02:53.5]} 7. Qf3
{[%clk 0:03:00.8]} 7... Nf6 {[%clk 0:02:53]} 8. O-O-O {[%clk 0:03:00]} 8... Ne5
{[%clk 0:02:49.7]} 9. Qg3 {[%clk 0:02:57.1]} 9... d6 {[%clk 0:02:50.2]} 10. Be2
{[%clk 0:02:54.6]} 10... Bd7 {[%clk 0:02:44.7]} 11. f4 {[%clk 0:02:51.4]} 11...
Nc4 {[%clk 0:02:44.9]} 12. Bxc4 {[%clk 0:02:48.8]} 12... Qxc4 {[%clk 0:02:45.8]}
13. e5 {[%clk 0:02:44.5]} 13... Nd5 {[%clk 0:02:45.1]} 14. Nxd5 {[%clk
0:02:37.4]} 14... Qxd5 {[%clk 0:02:45.3]} 15. Nb3 {[%clk 0:02:21.3]} 15... Qc6
{[%clk 0:02:38.4]} 16. f5 {[%clk 0:02:09.3]} 16... Rc8 {[%clk 0:02:33.6]} 17.
Rd2 {[%clk 0:02:08.3]} 17... d5 {[%clk 0:02:14.6]} 18. fxe6 {[%clk 0:02:04.3]}
18... Bxe6 {[%clk 0:02:12.4]} 19. Nd4 {[%clk 0:01:55.2]} 19... Qa4 {[%clk
0:02:05.1]} 20. Nxe6 {[%clk 0:01:52.9]} 20... fxe6 {[%clk 0:02:05]} 21. Kb1
{[%clk 0:01:53.8]} 21... Bb4 {[%clk 0:01:35]} 22. Qxg7 {[%clk 0:01:31.4]} 22...
Rf8 {[%clk 0:01:34.4]} 23. Re2 {[%clk 0:01:12.5]} 23... Qd7 {[%clk 0:01:26.3]}
24. Qxd7+ {[%clk 0:01:06.5]} 24... Kxd7 {[%clk 0:01:26.4]} 25. c3 {[%clk
0:01:07.4]} 25... Be7 {[%clk 0:01:26]} 26. Kc2 {[%clk 0:01:04.5]} 26... Rf5
{[%clk 0:01:25.3]} 27. g4 {[%clk 0:01:03.6]} 27... Rxe5 {[%clk 0:01:24.2]} 28.
Kd3 {[%clk 0:01:01.6]} 28... Rf8 {[%clk 0:01:21.9]} 29. Bd4 {[%clk 0:00:52.8]}
29... Rf3+ {[%clk 0:01:20.7]} 30. Kd2 {[%clk 0:00:52.2]} 30... Bg5+ {[%clk
0:01:13.9]} 31. Ke1 {[%clk 0:00:45.9]} 31... Rxe2+ {[%clk 0:01:12]} 32. Kxe2
{[%clk 0:00:46.8]} 32... Rh3 {[%clk 0:01:12.6]} 33. Be5 {[%clk 0:00:37]} 33...
Re3+ {[%clk 0:01:12]} 0-1